fUST/lending_fUST_20250615
["ID","MTS","AMOUNT","RATE_DAILY","PERIOD"]
[365961769,1749997846001,-324.91653166,0.00019726,2]
[365961771,1749997846010,-460.0,0.00019726,2]
[365961773,1749997846021,-492.07,0.00019726,2]
[365961775,1749997846030,-460.0,0.00019726,2]
[365961777,1749997846040,-841.13,0.00019726,2]
[365961779,1749997846049,-460.0,0.00019726,2]
[365961781,1749997846059,-417.13191541,0.00019726,2]
[365961783,1749997846069,-440.0,0.00019726,2]
[365961785,1749997846079,-460.0,0.00019726,2]
[365961787,1749997846089,-460.0,0.00019726,2]
[365961789,1749997846099,-929.85,0.00019726,2]
[365961791,1749997846108,-460.0,0.00019726,2]
[365961793,1749997846117,-320.0,0.00019726,2]
[365961795,1749997846126,-176.18866545,0.00019726,2]
[365961797,1749997846135,-440.0,0.00019726,2]
[365961799,1749997846144,-460.0,0.00019726,2]
[365961801,1749997846153,-460.0,0.00019726,2]
[365961803,1749997846163,-460.0,0.00019726,2]
[365961805,1749997846172,-460.0,0.00019726,2]
[365961807,1749997846181,-460.0,0.00019726,2]
[365961809,1749997846191,-460.0,0.00019726,2]
[365961811,1749997846200,-460.0,0.00019726,2]
[365961813,1749997846210,-460.0,0.00019726,2]
[365961815,1749997846219,-460.0,0.00019726,2]
[365961817,1749997846230,-460.0,0.00019726,2]
[365961819,1749997846239,-460.0,0.00019726,2]
[365961821,1749997846248,-360.0,0.00019726,2]
[365961823,1749997846258,-460.0,0.00019726,2]
[365961825,1749997846268,-1702.65,0.00019726,2]
[365961826,1749997846277,-460.0,0.00019726,2]
[365961828,1749997846286,-460.0,0.00019726,2]
[365961830,1749997846295,-460.0,0.00019726,2]
[365961833,1749997846307,-460.0,0.00019726,2]
[365961835,1749997846317,-460.0,0.00019726,2]
[365961837,1749997846327,-1493.35,0.00019726,2]
[365961838,1749997846336,-460.0,0.00019726,2]
[365961840,1749997846345,-1799.88,0.00019726,2]
[365961842,1749997846354,-460.0,0.00019726,2]
[365961845,1749997846364,-460.0,0.00019726,2]
[365961846,1749997846374,-460.0,0.00019726,2]
[365961849,1749997846384,-460.0,0.00019726,2]
[365961851,1749997846395,-420.0,0.00019858,2]
[365961853,1749997846404,-4220.77,0.00019999,2]
[365961855,1749997846414,-4220.77,0.00019999,2]
[365961856,1749997846424,-4220.77,0.00019999,2]
[365961859,1749997846434,-4220.77,0.00019999,2]
[365961860,1749997846443,-4220.86,0.00019999,2]
[365961862,1749997846453,-407.31550322,0.0002,2]
[365961864,1749997846462,-460.0,0.0002,2]
[365961866,1749997846472,-443.1423775,0.0002,2]
[365961868,1749997846481,-543.94,0.0002,2]
[365961870,1749997846491,-460.0,0.0002,2]
[365961872,1749997846501,-460.0,0.0002,2]
[365961874,1749997846511,-380.0,0.0002,2]
[365961876,1749997846520,-460.0,0.0002,2]
[365961878,1749997846530,-437.64112608,0.0002,2]
[365961880,1749997846540,-426.50782308,0.0002,2]
[365961882,1749997846550,-380.70451454,0.0002,2]
[365961884,1749997846563,-256.71,0.0002,2]
[365961886,1749997846572,-440.0,0.0002,2]
[365961888,1749997846581,-460.0,0.0002,2]
[365961890,1749997846591,-460.0,0.0002,2]
[365961892,1749997846600,-460.0,0.0002,2]
[365961894,1749997846611,-410.0,0.0002,2]
[365961896,1749997846621,-350.0,0.0002,2]
[365961898,1749997846631,-440.0,0.0002,2]
[365961900,1749997846642,-156.60765153,0.0002,5]
[365961902,1749997846652,-460.0,0.0002,2]
[365961904,1749997846661,-460.0,0.0002,2]
[365961906,1749997846671,-387.16812149,0.0002,2]
[365961907,1749997846771,-460.0,0.0002,2]
[365961908,1749997846782,-460.0,0.0002,2]
[365961910,1749997846791,-460.0,0.0002,2]
[365961912,1749997846801,-460.0,0.0002,2]
[365961914,1749997846814,-414.42656641,0.0002,2]
[365961916,1749997846823,-339.24169734,0.0002,2]
[365961918,1749997846832,-460.0,0.0002,2]
[365961920,1749997846842,-460.0,0.0002,2]
[365961922,1749997846851,-460.0,0.0002,2]
[365961924,1749997846860,-460.0,0.0002,2]
[365961926,1749997846870,-460.0,0.0002,2]
[365961928,1749997846880,-151.08869966,0.0002,2]
[365961930,1749997846889,-460.0,0.0002,2]
[365961932,1749997846899,-460.0,0.0002,2]
[365961934,1749997846908,-460.0,0.0002,2]
[365961936,1749997846917,-460.0,0.0002,2]
[365961938,1749997846926,-460.0,0.0002,2]
[365961940,1749997846936,-460.0,0.0002,2]
[365961942,1749997846945,-460.0,0.0002,2]
[365961944,1749997846955,-420.0,0.0002,2]
[365961946,1749997846964,-576.59414663,0.0002,2]
[365961948,1749997846974,-460.0,0.0002,2]
[365961950,1749997846983,-367.5006184,0.0002,2]
[365961952,1749997846993,-460.0,0.0002,2]
[365961954,1749997847002,-460.0,0.0002,2]
[365961956,1749997847011,-460.0,0.0002,2]
[365961958,1749997847021,-460.0,0.0002,2]
[365961960,1749997847030,-460.0,0.0002,2]
[365961962,1749997847039,-353.6568673,0.0002,2]
[365961964,1749997847048,-460.0,0.0002,2]
[365961966,1749997847060,-360.0,0.0002,2]
[365961968,1749997847069,-460.0,0.0002,2]
[365961969,1749997847078,-460.0,0.0002,2]
[365961971,1749997847088,-460.0,0.0002,2]
[365961973,1749997847098,-461.61508851,0.0002,2]
[365961975,1749997847107,-2000.0,0.0002,2]
[365961977,1749997847117,-440.0,0.0002,2]
[365961980,1749997847127,-460.0,0.0002,2]
[365961982,1749997847137,-679.29,0.0002,2]
[365961984,1749997847146,-460.0,0.0002,2]
[365961985,1749997847154,-460.0,0.0002,2]
[365961987,1749997847163,-460.0,0.0002,2]
[365961989,1749997847172,-460.0,0.0002,2]
[365961991,1749997847182,-460.0,0.0002,2]
[365961993,1749997847191,-460.0,0.0002,2]
[365961995,1749997847201,-440.0,0.0002,2]
[365961997,1749997847210,-440.0,0.0002,2]
[365961999,1749997847219,-460.0,0.0002,2]
[365962001,1749997847229,-460.0,0.0002,2]
[365962003,1749997847238,-460.0,0.0002,2]
[365962005,1749997847247,-460.0,0.0002,2]
[365962007,1749997847257,-1724.94,0.0002,2]
[365962009,1749997847267,-420.0,0.0002,2]
[365962011,1749997847277,-460.0,0.0002,2]
[365962013,1749997847287,-460.0,0.0002,2]
[365962016,1749997847297,-247.47199834,0.0002,2]
[365962017,1749997847308,-460.0,0.0002,2]
[365962020,1749997847318,-390.0,0.0002,2]
[365962022,1749997847328,-586.50332855,0.0002,2]
[365962024,1749997847338,-576.54,0.0002,2]
[365962026,1749997847348,-522.62,0.0002,2]
[365962027,1749997847357,-1483.85,0.0002,2]
[365962029,1749997847367,-460.0,0.0002,2]
[365962031,1749997847376,-1946.18,0.0002,2]
[365962033,1749997847386,-1921.67,0.0002,2]
[365962036,1749997847395,-460.0,0.0002,2]
[365962038,1749997847405,-581.55843773,0.0002,2]
[365962040,1749997847415,-460.0,0.0002,2]
[365962042,1749997847424,-187.2588249,0.0002,2]
[365962043,1749997847434,-460.0,0.0002,2]
[365962046,1749997847443,-460.0,0.0002,2]
[365962048,1749997847454,-460.0,0.0002,2]
[365962049,1749997847463,-440.0,0.0002,2]
[365962052,1749997847473,-460.0,0.0002,2]
[365962054,1749997847483,-460.0,0.0002,2]
[365962056,1749997847493,-447.55791013,0.0002,2]
[365962058,1749997847503,-420.0,0.0002,2]
[365962060,1749997847512,-312.14254253,0.0002,2]
[365962062,1749997847522,-541.37663522,0.0002,2]
[365962064,1749997847531,-460.0,0.0002,2]
[365962066,1749997847540,-460.0,0.0002,2]
[365962068,1749997847550,-1997.84289726,0.0002,2]
[365962069,1749997847561,-650.71,0.0002,2]
[365962072,1749997847572,-440.0,0.0002,2]
[365962074,1749997847582,-460.0,0.0002,2]
[365962076,1749997847592,-562.66494488,0.0002,2]
[365962078,1749997847603,-671.89,0.0002,2]
[365962080,1749997847612,-791.72313881,0.0002,2]
[365962082,1749997847622,-460.0,0.0002,2]
[365962084,1749997847632,-460.0,0.0002,2]
[365962086,1749997847641,-460.0,0.0002,2]
[365962088,1749997847651,-460.0,0.0002,2]
[365962090,1749997847660,-884.21,0.0002,2]
[365962092,1749997847670,-440.0,0.0002,2]
[365962094,1749997847679,-460.0,0.0002,2]
[365962096,1749997847688,-460.0,0.0002,2]
[365962098,1749997847698,-400.0,0.0002,2]
[365962100,1749997847708,-460.0,0.0002,2]
[365962102,1749997847719,-460.0,0.0002,2]
[365962104,1749997847729,-460.0,0.0002,2]
[365962106,1749997847738,-460.0,0.0002,2]
[365962108,1749997847748,-460.0,0.0002,2]
[365962110,1749997847758,-841.13,0.0002,2]
[365962112,1749997847767,-440.0,0.0002,2]
[365962114,1749997847777,-460.0,0.0002,2]
[365962116,1749997847787,-460.0,0.0002,2]
[365962118,1749997847797,-929.85,0.0002,2]
[365962120,1749997847807,-410.0,0.0002,2]
[365962122,1749997847816,-460.0,0.0002,2]
[365962124,1749997847825,-460.0,0.0002,2]
[365962126,1749997847835,-460.0,0.0002,2]
[365962128,1749997847845,-460.0,0.0002,2]
[365962130,1749997847854,-460.0,0.0002,2]
[365962132,1749997847863,-282.65062192,0.0002,2]
[365962134,1749997847880,-460.0,0.0002,2]
[365962136,1749997847894,-460.0,0.0002,2]
[365962138,1749997847905,-460.0,0.0002,2]
[365962140,1749997847915,-420.0,0.0002,2]
[365962142,1749997847926,-460.0,0.0002,2]
[365962144,1749997847937,-460.0,0.0002,2]
[365962146,1749997847947,-1702.65,0.0002,2]
[365962148,1749997847956,-460.0,0.0002,2]
[365962150,1749997847966,-342.83759296,0.0002,2]
[365962152,1749997847976,-420.0,0.0002,2]
[365962154,1749997847986,-459.74083826,0.0002,2]
[365962156,1749997847996,-460.0,0.0002,2]
[365962158,1749997848005,-1493.35,0.0002,2]
[365962160,1749997848016,-460.0,0.0002,2]
[365962162,1749997848025,-1799.88,0.0002,2]
[365962164,1749997848035,-527.04436035,0.0002,2]
[365962166,1749997848045,-240.0,0.0002,2]
[365962168,1749997848054,-397.01982406,0.0002,2]
[365962170,1749997848064,-460.0,0.0002,2]
[365962172,1749997848074,-1654.58073067,0.00020037,2]
[365962174,1749997848083,-449.398447,0.00020187,2]
[365962176,1749997848093,-543.94,0.00020273,2]
[365962178,1749997848103,-460.0,0.00020273,2]
[365962180,1749997848113,-460.0,0.00020273,2]
[365962182,1749997848122,-380.0,0.00020273,2]
[365962184,1749997848132,-390.0,0.00020273,2]
[365962186,1749997848141,-390.0,0.00020273,2]
[365962188,1749997848151,-395.73432771,0.00020273,2]
[365962190,1749997848160,-460.0,0.00020273,2]
[365962192,1749997848169,-432.69091265,0.00020273,2]
[365962194,1749997848179,-390.0,0.00020273,2]
[365962196,1749997848188,-460.0,0.00020273,2]
[365962198,1749997848199,-420.0,0.00020273,2]
[365962201,1749997848209,-410.0,0.00020273,2]
[365962202,1749997848218,-460.0,0.00020273,2]
[365962205,1749997848228,-460.0,0.00020273,2]
[365962207,1749997848238,-360.0,0.00020273,2]
[365962208,1749997848248,-420.0,0.00020273,2]
[365962210,1749997848258,-460.0,0.00020273,2]
[365962212,1749997848268,-460.0,0.00020273,2]
[365962215,1749997848277,-460.0,0.00020273,2]
[365962216,1749997848287,-566.39311367,0.00020273,2]
[365962218,1749997848296,-460.0,0.00020273,2]
[365962220,1749997848306,-197.31337355,0.00020273,2]
[365962222,1749997848315,-410.0,0.00020273,2]
[365962224,1749997848325,-420.0,0.00020273,2]
[365962226,1749997848334,-460.0,0.00020273,2]
[365962228,1749997848344,-460.0,0.00020273,2]
[365962230,1749997848354,-460.0,0.00020273,2]
[365962232,1749997848364,-460.0,0.00020273,2]
[365962234,1749997848374,-460.0,0.00020273,2]
[365962236,1749997848384,-460.0,0.00020273,2]
[365962238,1749997848393,-460.0,0.00020273,2]
[365962240,1749997848403,-679.29,0.00020273,2]
[365962242,1749997848413,-460.0,0.00020273,2]
[365962244,1749997848422,-460.0,0.00020273,2]
[365962246,1749997848431,-460.0,0.00020273,2]
[365962248,1749997848440,-441.7137871,0.00020273,2]
[365962251,1749997848451,-226.85,0.00020273,2]
[365962253,1749997848460,-460.0,0.00020273,2]
[365962255,1749997848470,-440.0,0.00020273,2]
[365962257,1749997848479,-460.0,0.00020273,2]
[365962259,1749997848488,-460.0,0.00020273,2]
[365962260,1749997848498,-209.16973284,0.00020273,2]
[365962263,1749997848507,-1724.94,0.00020273,2]
[365962265,1749997848517,-390.0,0.00020273,2]
[365962267,1749997848526,-151.63523448,0.00020273,2]
[365962268,1749997848536,-460.0,0.00020273,2]
[365962270,1749997848546,-522.62,0.00020273,2]
[365962273,1749997848556,-1483.85,0.00020273,2]
[365962274,1749997848565,-460.0,0.00020273,2]
[365962277,1749997848574,-1946.18,0.00020273,2]
[365962278,1749997848585,-1921.67,0.00020273,2]
[365962280,1749997848594,-460.0,0.00020273,2]
[365962282,1749997848604,-460.0,0.00020273,2]
[365962284,1749997848614,-440.0,0.00020273,2]
[365962287,1749997848624,-460.0,0.00020273,2]
[365962288,1749997848634,-460.0,0.00020273,2]
[365962290,1749997848643,-460.0,0.00020273,2]
[365962292,1749997848654,-460.0,0.00020273,2]
[365962295,1749997848664,-316.15880836,0.00020273,2]
[365962297,1749997848673,-460.0,0.00020273,2]
[365962299,1749997848682,-650.71,0.00020273,2]
[365962301,1749997848691,-460.0,0.00020273,2]
[365962303,1749997848700,-671.89,0.00020273,2]
[365962305,1749997848709,-420.0,0.00020273,2]
[365962307,1749997848718,-460.0,0.00020273,2]
[365962309,1749997848728,-209.16029784,0.00020273,2]
[365962311,1749997848739,-420.16378127,0.00020273,2]
[365962313,1749997848748,-884.21,0.00020273,2]
[365962315,1749997848758,-460.0,0.00020273,2]
[365962317,1749997848767,-460.0,0.00020273,2]
[365962319,1749997848777,-460.0,0.00020273,2]
[365962321,1749997848787,-400.0,0.00020273,2]
[365962323,1749997848796,-460.0,0.00020273,2]
[365962325,1749997848805,-460.0,0.00020273,2]
[365962327,1749997848815,-460.0,0.00020273,2]
[365962329,1749997848824,-841.13,0.00020273,2]
[365962331,1749997848833,-460.0,0.00020273,2]
[365962342,1749997848843,-460.0,0.00020273,2]
[365962344,1749997848940,-929.85,0.00020273,2]
[365962346,1749997848950,-460.0,0.00020273,2]
[365962348,1749997848960,-400.0,0.00020273,2]
[365962350,1749997848969,-460.0,0.00020273,2]
[365962352,1749997848979,-496.95,0.00020273,2]
[365962354,1749997848989,-460.0,0.00020273,2]
[365962356,1749997848999,-460.0,0.00020273,2]
[365962358,1749997849009,-460.0,0.00020273,2]
[365962360,1749997849019,-460.0,0.00020273,2]
[365962362,1749997849029,-440.0,0.00020273,2]
[365962364,1749997849039,-1702.65,0.00020273,2]
[365962366,1749997849049,-460.0,0.00020273,2]
[365962368,1749997849060,-460.0,0.00020273,2]
[365962370,1749997849071,-1493.35,0.00020273,2]
[365962372,1749997849081,-460.0,0.00020273,2]
[365962374,1749997849091,-1799.88,0.00020273,2]
[365962376,1749997849101,-460.0,0.00020273,2]
[365962378,1749997849111,-500.0,0.00020296,2]
[365962380,1749997849121,-501.02704274,0.00020296,2]
[365962382,1749997849132,-533.62815428,0.00020296,2]
[365962384,1749997849143,-500.0,0.00020296,2]
[365962386,1749997849153,-500.0,0.00020296,2]
[365962388,1749997849164,-500.0,0.00020305,2]
[365962390,1749997849174,-160.0,0.00020398,2]
[365962392,1749997849184,-160.0,0.00020398,2]
[365962394,1749997849194,-213.32089821,0.00020398,2]
[365962396,1749997849204,-160.0,0.00020398,2]
[365962398,1749997849215,-424.47602138,0.00020468,2]
[365962400,1749997849227,-229.86375354,0.00020468,2]
[365962402,1749997849236,-835.55256958,0.00020468,2]
[365962404,1749997849246,-160.0,0.00020468,2]
[365962406,1749997849256,-160.0,0.00020468,2]
[365962408,1749997849266,-845.25843836,0.00020471,2]
[365962411,1749997849277,-12535.62630729,0.00020471,2]
[365962413,1749997849286,-224.95,0.00020504,2]
[365962415,1749997849296,-1654.58073067,0.00020516,2]
[365962417,1749997849306,-952.5,0.00020538,3]
[365962418,1749997849316,-605.2,0.00020538,3]
[365962421,1749997849325,-302.6,0.00020538,3]
[365962422,1749997849335,-543.94,0.00020547,2]
[365962424,1749997849345,-460.0,0.00020547,2]
[365962427,1749997849356,-397.11,0.00020547,2]
[365962429,1749997849365,-310.0,0.00020547,2]
[365962431,1749997849374,-460.0,0.00020547,2]
[365962432,1749997849384,-409.55413252,0.00020547,2]
[365962435,1749997849393,-460.0,0.00020547,2]
[365962436,1749997849403,-440.0,0.00020547,2]
[365962439,1749997849412,-460.0,0.00020547,2]
[365962441,1749997849423,-494.37,0.00020547,2]
[365962443,1749997849433,-460.0,0.00020547,2]
[365962445,1749997849443,-500.0,0.00020547,2]
[365962447,1749997849453,-460.0,0.00020547,2]
[365962449,1749997849464,-460.0,0.00020547,2]
[365962451,1749997849473,-491.87175503,0.00020547,2]
[365962453,1749997849483,-561.83222827,0.00020547,2]
[365962455,1749997849492,-460.0,0.00020547,2]
[365962457,1749997849503,-460.0,0.00020547,2]
[365962459,1749997849512,-440.0,0.00020547,2]
[365962461,1749997849522,-679.29,0.00020547,2]
[365962463,1749997849531,-460.0,0.00020547,2]
[365962465,1749997849540,-460.0,0.00020547,2]
[365962467,1749997849549,-460.0,0.00020547,2]
[365962469,1749997849560,-460.0,0.00020547,2]
[365962471,1749997849569,-460.0,0.00020547,2]
[365962473,1749997849579,-460.0,0.00020547,2]
[365962475,1749997849588,-1724.94,0.00020547,2]
[365962477,1749997849598,-460.0,0.00020547,2]
[365962479,1749997849607,-522.62,0.00020547,2]
[365962481,1749997849616,-1483.85,0.00020547,2]
[365962483,1749997849625,-460.0,0.00020547,2]
[365962485,1749997849635,-1946.18,0.00020547,2]
[365962487,1749997849644,-1921.67,0.00020547,2]
[365962489,1749997849653,-460.0,0.00020547,2]
[365962491,1749997849662,-460.0,0.00020547,2]
[365962493,1749997849671,-460.0,0.00020547,2]
[365962495,1749997849680,-460.0,0.00020547,2]
[365962497,1749997849689,-460.0,0.00020547,2]
[365962499,1749997849698,-460.0,0.00020547,2]
[365962501,1749997849707,-460.0,0.00020547,2]
[365962503,1749997849717,-650.71,0.00020547,2]
[365962505,1749997849727,-460.0,0.00020547,2]
[365962507,1749997849739,-671.89,0.00020547,2]
[365962509,1749997849748,-249.33579986,0.00020547,2]
[365962511,1749997849757,-884.21,0.00020547,2]
[365962513,1749997849767,-460.0,0.00020547,2]
[365962515,1749997849776,-460.0,0.00020547,2]
[365962517,1749997849785,-460.0,0.00020547,2]
[365962519,1749997849794,-460.0,0.00020547,2]
[365962521,1749997849804,-460.0,0.00020547,2]
[365962523,1749997849814,-460.0,0.00020547,2]
[365962525,1749997849823,-841.13,0.00020547,2]
[365962527,1749997849833,-460.0,0.00020547,2]
[365962529,1749997849842,-460.0,0.00020547,2]
[365962531,1749997849851,-340.0,0.00020547,2]
[365962533,1749997849860,-460.0,0.00020547,2]
[365962535,1749997849874,-929.85,0.00020547,2]
[365962537,1749997849885,-460.0,0.00020547,2]
[365962539,1749997849894,-460.0,0.00020547,2]
[365962541,1749997849904,-460.0,0.00020547,2]
[365962543,1749997849914,-460.0,0.00020547,2]
[365962545,1749997849923,-1702.65,0.00020547,2]
[365962547,1749997849932,-460.0,0.00020547,2]
[365962549,1749997849942,-460.0,0.00020547,2]
[365962551,1749997849952,-1493.35,0.00020547,2]
[365962553,1749997849962,-460.0,0.00020547,2]
[365962555,1749997849972,-1799.88,0.00020547,2]
[365962557,1749997849982,-460.0,0.00020547,2]
[365962559,1749997849991,-1200.32,0.000206,2]
[365962561,1749997850002,-36359.58,0.000206,2]
[365962563,1749997850011,-559.89,0.000206,2]
[365962565,1749997850020,-774.87087582,0.000207,3]
[365962567,1749997850029,-774.87087582,0.000207,3]
[365962569,1749997850039,-774.87087582,0.000207,3]
[365962571,1749997850049,-774.87087582,0.000207,3]
[365962573,1749997850059,-160.0,0.00020721,2]
[365962575,1749997850069,-774.87087582,0.00020728,3]
[365962577,1749997850079,-1390.4,0.00020757,2]
[365962579,1749997850089,-151.0,0.000208,4]
[365962581,1749997850098,-500.0,0.00020809,2]
[365962583,1749997850108,-500.78709325,0.00020809,2]
[365962585,1749997850117,-500.0,0.00020809,2]
[365962587,1749997850127,-543.94,0.00020821,2]
[365962589,1749997850137,-460.0,0.00020821,2]
[365962591,1749997850146,-390.0,0.00020821,2]
[365962593,1749997850156,-460.0,0.00020821,2]
[365962595,1749997850166,-435.54679998,0.00020821,2]
[365962597,1749997850176,-460.0,0.00020821,2]
[365962599,1749997850185,-460.0,0.00020821,2]
[365962601,1749997850195,-460.0,0.00020821,2]
[365962603,1749997850205,-460.0,0.00020821,2]
[365962605,1749997850214,-460.0,0.00020821,2]
[365962607,1749997850223,-679.29,0.00020821,2]
[365962609,1749997850233,-460.0,0.00020821,2]
[365962611,1749997850242,-460.0,0.00020821,2]
[365962613,1749997850251,-440.0,0.00020821,2]
[365962615,1749997850260,-460.0,0.00020821,2]
[365962617,1749997850270,-460.0,0.00020821,2]
[365962619,1749997850279,-440.0,0.00020821,2]
[365962621,1749997850288,-1724.94,0.00020821,2]
[365962623,1749997850298,-460.0,0.00020821,2]
[365962625,1749997850308,-522.62,0.00020821,2]
[365962627,1749997850317,-1483.85,0.00020821,2]
[365962629,1749997850326,-460.0,0.00020821,2]
[365962631,1749997850336,-1946.18,0.00020821,2]
[365962633,1749997850345,-1921.67,0.00020821,2]
[365962635,1749997850355,-460.0,0.00020821,2]
[365962637,1749997850365,-282.33014427,0.00020821,2]
[365962639,1749997850375,-460.0,0.00020821,2]
[365962641,1749997850385,-460.0,0.00020821,2]
[365962643,1749997850395,-460.0,0.00020821,2]
[365962645,1749997850405,-460.0,0.00020821,2]
[365962647,1749997850414,-440.0,0.00020821,2]
[365962649,1749997850424,-650.71,0.00020821,2]
[365962651,1749997850432,-440.0,0.00020821,2]
[365962653,1749997850442,-671.89,0.00020821,2]
[365962655,1749997850451,-884.21,0.00020821,2]
[365962657,1749997850460,-460.0,0.00020821,2]
[365962659,1749997850470,-460.0,0.00020821,2]
[365962661,1749997850479,-460.0,0.00020821,2]
[365962663,1749997850489,-317.87281956,0.00020821,2]
[365962665,1749997850498,-460.0,0.00020821,2]
[365962667,1749997850507,-460.0,0.00020821,2]
[365962669,1749997850518,-841.13,0.00020821,2]
[365962671,1749997850527,-460.0,0.00020821,2]
[365962673,1749997850537,-440.0,0.00020821,2]
[365962675,1749997850547,-460.0,0.00020821,2]
[365962677,1749997850557,-929.85,0.00020821,2]
[365962679,1749997850567,-460.0,0.00020821,2]
[365962681,1749997850577,-345.79823769,0.00020821,2]
[365962683,1749997850587,-460.0,0.00020821,2]
[365962685,1749997850596,-460.0,0.00020821,2]
[365962687,1749997850605,-1702.65,0.00020821,2]
[365962689,1749997850615,-590.13,0.00020821,2]
[365962691,1749997850625,-460.0,0.00020821,2]
[365962693,1749997850635,-1493.35,0.00020821,2]
[365962695,1749997850645,-460.0,0.00020821,2]
[365962697,1749997850654,-1799.88,0.00020821,2]
[365962699,1749997850663,-460.0,0.00020821,2]
[365962701,1749997850672,-500.9670821,0.00020844,2]
[365962703,1749997850682,-1000.0,0.00020844,2]
[365962705,1749997850691,-500.0,0.00020852,2]
[365962707,1749997850701,-420.0,0.00020899,2]
[365962710,1749997850711,-774.87087582,0.00020934,4]
[365962712,1749997850720,-1654.58073067,0.00020995,2]
[365962714,1749997850729,-1680.0,0.00020999,2]
[365962716,1749997850738,-3368.69384205,0.00021,2]
[365962718,1749997850748,-349.27989864,0.0002102,2]
[365962720,1749997850758,-543.94,0.00021095,2]
[365962722,1749997850767,-460.0,0.00021095,2]
[365962723,1749997850777,-420.0,0.00021095,2]
[365962725,1749997850787,-460.0,0.00021095,2]
[365962728,1749997850796,-500.0,0.00021095,3]
[365962729,1749997850805,-460.0,0.00021095,2]
[365962731,1749997850815,-310.0,0.00021095,2]
[365962734,1749997850825,-460.0,0.00021095,2]
[365962736,1749997850834,-460.0,0.00021095,2]
[365962743,1749997850931,-679.29,0.00021095,2]
[365962744,1749997850940,-460.0,0.00021095,2]
[365962745,1749997850949,-360.0,0.00021095,2]
[365962746,1749997850959,-460.0,0.00021095,2]
[365962747,1749997850968,-405.92,0.00021095,2]
[365962748,1749997850978,-1724.94,0.00021095,2]
[365962749,1749997850987,-237.24598555,0.00021095,2]
[365962750,1749997850997,-522.62,0.00021095,2]
[365962751,1749997851006,-1483.85,0.00021095,2]
[365962752,1749997851015,-460.0,0.00021095,2]
[365962753,1749997851025,-1946.18,0.00021095,2]
[365962755,1749997851034,-1921.67,0.00021095,2]
[365962757,1749997851044,-320.32682135,0.00021095,2]
[365962759,1749997851053,-460.0,0.00021095,2]
[365962761,1749997851064,-460.0,0.00021095,2]
[365962763,1749997851073,-400.0,0.00021095,2]
[365962764,1749997851083,-460.0,0.00021095,2]
[365962766,1749997851092,-650.71,0.00021095,2]
[365962769,1749997851101,-671.89,0.00021095,2]
[365962771,1749997851111,-884.21,0.00021095,2]